bitfinex/quotes_SOLUSD_20250912
["timestamp","ask_amount","ask_price","bid_price","bid_amount"]
[1757640191855,17.33718123,232.95,232.93,34.5]
[1757640192440,17.33718123,232.95,232.89,132.74]
[1757640192642,17.33718123,232.95,232.9,34.5]
[1757640192854,17.33718123,232.95,232.9,35.2]
[1757640193740,17.33718123,232.95,232.9,0.7]
[1757640194078,17.33718123,232.95,232.91,34.5]
[1757640194366,0.68,232.94,232.92,34.5]
[1757640194539,6.7616859,232.94,232.92,34.5]
[1757640194740,3.5600477,232.94,232.92,34.5]
[1757640195060,6.08168633,232.93,232.92,34.5]
[1757640195263,6.08168633,232.94,232.92,34.5]
[1757640195444,2.8800477,232.93,232.92,34.5]
[1757640196240,6.08168633,232.94,232.92,34.5]
[1757640196646,6.08168633,232.94,232.93,0.7]
[1757640197062,16.50564171,232.95,232.92,34.5]
[1757640199167,3.20182,232.94,232.92,34.5]
[1757640199861,17.98718123,232.93,232.88,0.12]
[1757640200169,13.59559401,232.9,232.89,34.48]
[1757640200371,19.6792685,232.9,232.89,34.48]
[1757640200668,13.59559401,232.92,232.89,35.18]
[1757640200966,2.88166017,232.91,232.89,34.48]
[1757640201155,6.08499601,232.91,232.89,34.48]
[1757640202548,2.88166017,232.9,232.89,34.48]
[1757640202768,6.08499601,232.91,232.89,34.48]
[1757640203273,6.08499601,232.91,232.89,35.18]
[1757640204159,6.08769411,232.91,232.89,35.18]
[1757640205975,6.08769411,232.91,232.89,167.22]
[1757640206564,6.08769411,232.91,232.89,166.52]
[1757640206774,6.08769411,232.91,232.9,0.66]
[1757640206973,2.88435827,232.91,232.9,0.66]
[1757640207160,6.08900521,232.94,232.9,0.66]
[1757640207362,2.88435827,232.93,232.91,0.66]
[1757640207559,2.88435827,232.93,232.92,0.66]
[1757640208377,2.88435827,232.94,232.92,0.66]
[1757640208586,2.88435827,232.94,232.89,166.52]
[1757640208587,2.88435827,232.94,232.93,0.66]
[1757640209789,2.91435827,232.95,232.93,0.66]
[1757640209993,2.91435827,232.95,232.94,0.66]
[1757640210278,0.03,232.95,232.94,35.12]
[1757640211262,2.91435827,232.95,232.94,34.46]
[1757640211468,2.91435827,232.95,232.92,0.66]
[1757640211669,2.91435827,232.95,232.89,132.04]
[1757640211958,3.71158722,232.92,232.9,34.46]
[1757640212161,20.40532933,232.91,232.88,0.12]
[1757640212471,18.85729161,232.9,232.89,34.46]
[1757640212870,15.97293334,232.9,232.89,34.46]
[1757640213067,18.85729161,232.9,232.88,0.12]
[1757640213273,15.97293334,232.9,232.89,34.46]
[1757640213473,18.85729161,232.9,232.89,34.46]
[1757640213668,19.17842208,232.9,232.89,34.46]
[1757640213886,22.06278035,232.9,232.89,34.58]
[1757640214097,16.80108275,232.9,232.89,34.58]
[1757640214390,18.85729161,232.9,232.89,34.58]
[1757640214562,15.97293334,232.9,232.89,34.58]
[1757640214975,22.06264466,232.9,232.89,0.12]
[1757640215180,22.78264466,232.9,232.89,0.12]
[1757640216295,22.06264466,232.9,232.89,0.12]
[1757640216976,27.07633293,232.9,232.89,0.12]
[1757640217165,30.68178077,232.9,232.89,1e-08]
[1757640217360,13.59559401,232.89,232.88,0.12]
[1757640217565,19.68530533,232.89,232.88,0.12]
[1757640217765,20.40530533,232.89,232.88,0.12]
[1757640218175,24.69917797,232.89,232.88,0.12]
[1757640218884,27.0765173,232.89,232.88,0.12]
[1757640220181,24.69917797,232.89,232.87,0.12]
[1757640220384,20.40530533,232.88,232.87,0.12]
[1757640220592,22.78264466,232.88,232.87,0.12]
[1757640220772,22.7794373,232.88,232.87,0.12]
[1757640221476,26.38077423,232.88,232.87,0.12]
[1757640221678,30.67483125,232.88,232.87,0.12]
[1757640222386,27.07349432,232.88,232.87,0.12]
[1757640222797,24.69615499,232.88,232.87,0.12]
[1757640223293,27.07349432,232.88,232.87,0.12]
[1757640224397,28.29638372,232.88,232.87,0.12]
[1757640224691,30.67117443,232.88,232.87,0.12]
[1757640224870,27.0709457,232.88,232.87,0.12]
[1757640225070,39.59559401,232.85,232.81,0.12]
[1757640225286,51.65667894,232.85,232.81,0.12]
[1757640225490,13.59559401,232.84,232.81,0.12]
[1757640225691,19.67954935,232.84,232.81,0.12]
[1757640225894,15.97293334,232.83,232.81,0.12]
[1757640226118,13.59559401,232.74,232.72,0.66]
[1757640226301,15.97293334,232.73,232.72,0.66]
[1757640228494,26.0,232.81,232.72,0.66]
[1757640228793,13.59559401,232.76,232.72,0.66]
[1757640230395,13.59559401,232.79,232.72,0.66]
[1757640231877,2.37733933,232.78,232.72,0.78]
[1757640232111,2.37733933,232.75,232.72,0.78]
[1757640232279,13.59559401,232.74,232.72,35.22]
[1757640232997,2.37733933,232.73,232.72,0.12]
[1757640233482,17.89210249,232.75,232.72,0.12]
[1757640233683,2.37733933,232.73,232.72,0.12]
[1757640233978,15.97293334,232.73,232.72,0.12]
[1757640235077,16.65293334,232.73,232.72,0.12]
[1757640235806,15.97293334,232.73,232.72,0.12]
[1757640236682,13.59559401,232.73,232.72,0.12]
[1757640236893,15.97293334,232.73,232.72,0.12]
[1757640237994,20.26975798,232.73,232.72,0.12]
[1757640239284,13.62559401,232.81,232.72,0.82]
[1757640239484,13.59559401,232.79,232.72,0.82]
[1757640239698,39.59559401,232.79,232.72,0.82]
[1757640240612,13.59559401,232.79,232.72,0.82]
[1757640241018,0.03,232.81,232.72,0.82]
[1757640241585,2.37733933,232.75,232.72,0.82]
[1757640241891,2.37733933,232.74,232.73,34.42]
[1757640242499,2.37733933,232.75,232.73,35.12]
[1757640242899,2.37733933,232.78,232.74,0.7]
[1757640243092,26.0,232.78,232.74,0.7]
[1757640243501,28.37733933,232.78,232.72,0.12]
[1757640243691,28.37733933,232.78,232.75,35.12]
[1757640243891,28.37733933,232.78,232.75,34.42]
[1757640244110,28.37733933,232.78,232.76,0.7]
[1757640244822,15.97293334,232.77,232.75,34.42]
[1757640245208,15.97293334,232.77,232.74,34.42]
[1757640245718,15.97293334,232.77,232.74,35.12]
[1757640245916,2.37733933,232.75,232.74,34.42]
[1757640246500,41.97293334,232.75,232.74,34.42]
[1757640247191,39.59559401,232.75,232.74,35.12]
[1757640247821,39.59559401,232.75,232.74,34.42]
[1757640248517,39.59559401,232.75,232.72,132.22]
[1757640248727,15.97293334,232.73,232.72,132.22]
[1757640248901,15.97293334,232.73,232.72,0.12]
[1757640248902,16.65293334,232.73,232.72,0.12]
[1757640249096,15.97293334,232.73,232.72,0.12]
[1757640250416,20.94975798,232.73,232.72,0.12]
[1757640250619,20.26975798,232.73,232.72,0.12]
[1757640251116,15.97293334,232.73,232.72,0.12]
[1757640252209,20.26975798,232.73,232.72,0.12]
[1757640252390,15.97293334,232.73,232.72,0.12]
[1757640253096,13.59559401,232.73,232.72,0.12]
[1757640253303,15.97293334,232.73,232.72,0.12]
[1757640253500,13.59559401,232.73,232.72,0.12]
[1757640253703,15.97293334,232.73,232.72,0.82]
[1757640254126,15.97293334,232.73,232.72,0.12]
[1757640255816,20.26975798,232.73,232.72,0.12]
[1757640256130,27.01738896,232.73,232.72,0.12]
[1757640256330,27.01959221,232.73,232.72,0.12]
[1757640258118,27.02094783,232.73,232.72,0.12]
[1757640258613,26.34094783,232.73,232.72,0.12]
[1757640259327,48.04412319,232.73,232.72,0.82]
[1757640259505,48.04412319,232.73,232.72,0.12]
[1757640259708,45.66678386,232.73,232.72,0.82]
[1757640260026,44.84694868,232.73,232.72,0.82]
[1757640260407,44.84694868,232.73,232.72,0.12]
[1757640260408,48.04866475,232.73,232.72,0.12]
[1757640260721,42.46960935,232.73,232.72,35.22]
[1757640261305,45.67330045,232.73,232.72,35.22]
[1757640263025,45.67330045,232.73,232.72,34.52]
[1757640263919,45.67330045,232.73,232.72,0.12]
[1757640264106,45.67330045,232.73,232.72,34.5]
[1757640264311,48.05063978,232.73,232.72,0.12]
[1757640264630,53.03746442,232.73,232.72,0.12]
[1757640265006,27.03746442,232.73,232.72,0.12]
[1757640266530,53.03746442,232.73,232.72,0.12]
[1757640266833,22.05063978,232.73,232.72,0.12]
[1757640267643,26.34746442,232.73,232.72,0.12]
[1757640269544,22.74063978,232.73,232.72,0.12]
[1757640269718,22.05063978,232.73,232.72,0.12]
[1757640271450,26.34746442,232.73,232.72,0.12]
[1757640272314,28.38092522,232.73,232.72,0.12]
[1757640272710,27.69092522,232.73,232.72,0.12]
[1757640275236,28.38092522,232.73,232.72,0.12]
[1757640275750,31.98021584,232.73,232.72,0.12]
[1757640276332,31.29021584,232.73,232.72,0.12]
[1757640276728,39.59559401,232.7,232.69,0.12]
[1757640276933,88.56774835,232.7,232.69,0.12]
[1757640277137,88.16490071,232.7,232.69,0.12]
[1757640277722,13.59559401,232.69,232.68,0.12]
[1757640277923,19.67330045,232.69,232.68,0.12]
[1757640278124,39.59559401,232.62,232.61,22.749359]
[1757640278331,49.39410058,232.62,232.61,22.749359]
[1757640278822,49.39410058,232.62,232.61,23.459359]
[1757640279147,45.67330045,232.62,232.61,23.459359]
[1757640279940,19.67330045,232.62,232.61,23.459359]
[1757640280145,13.59559401,232.62,232.61,23.459359]
[1757640281248,25.50876541,232.62,232.51,0.71]
[1757640281458,25.50876541,232.62,232.48,0.1]
[1757640281459,17.31639414,232.52,232.48,0.1]
[1757640281758,39.59559401,232.49,232.48,0.1]
[1757640282336,45.67347056,232.49,232.48,0.1]
[1757640283035,58.30278919,232.49,232.48,0.1]
[1757640283229,59.14450726,232.49,232.48,0.1]
[1757640283454,62.0187302,232.49,232.48,0.1]
[1757640284145,55.42370713,232.49,232.48,0.1]
[1757640284346,59.14450726,232.49,232.48,0.1]
[1757640284526,55.94571277,232.49,232.48,0.1]
[1757640284839,59.13511175,232.49,232.48,0.1]
[1757640285240,55.94571277,232.49,232.48,0.1]
[1757640285751,61.999805,232.49,232.48,0.1]
[1757640286243,59.13211706,232.49,232.48,0.1]
[1757640286761,61.99737872,232.49,232.48,0.1]
[1757640287448,96.35737872,232.49,232.48,0.1]
[1757640287647,55.94571277,232.49,232.48,0.81]
[1757640287853,55.94571277,232.49,232.48,0.1]
[1757640288552,55.94571277,232.49,232.48,0.81]
[1757640289556,26.22491264,232.49,232.48,0.81]
[1757640290555,3.47670703,232.59,232.48,0.81]
[1757640290745,3.72080013,232.56,232.48,0.81]
[1757640291054,13.59559401,232.55,232.48,0.81]
[1757640291559,3.72080013,232.54,232.48,0.81]
[1757640291747,26.0,232.56,232.48,0.81]
[1757640291951,13.59559401,232.55,232.48,0.81]
[1757640292152,17.31639414,232.55,232.48,0.81]
[1757640292458,3.72080013,232.51,232.48,0.81]
[1757640292753,26.0,232.53,232.48,0.1]
[1757640292754,17.31639414,232.49,232.48,0.1]
[1757640293675,22.3076544,232.49,232.48,0.1]
[1757640294039,25.48362377,232.49,232.48,0.1]
[1757640294642,24.79362377,232.49,232.48,0.1]
[1757640294947,26.0,232.46,232.44,0.7]
[1757640295143,13.59559401,232.44,232.34,10.42]
[1757640295555,16.45257616,232.44,232.34,10.42]
[1757640295757,16.45257616,232.44,232.35,0.7]
[1757640296448,2.85698215,232.43,232.35,0.7]
[1757640297457,17.31639414,232.42,232.36,34.38]
[1757640297658,17.31639414,232.42,232.37,0.7]
[1757640298045,2.85698215,232.45,232.37,0.7]
[1757640298248,26.0,232.46,232.37,0.7]
[1757640298644,2.8537589,232.45,232.37,0.7]
[1757640298861,26.0,232.46,232.37,0.7]
[1757640299061,13.59559401,232.47,232.37,0.7]
[1757640299963,2.8537065,232.48,232.39,26.0]
[1757640300170,17.31639414,232.57,232.4,0.7]
[1757640300478,3.72080013,232.53,232.4,0.7]
[1757640300761,17.31639414,232.51,232.41,34.38]
[1757640301058,17.31639414,232.51,232.42,0.7]
[1757640301459,17.31639414,232.51,232.43,34.38]
[1757640301769,13.59559401,232.51,232.44,35.08]
[1757640301963,3.72080013,232.55,232.45,0.7]
[1757640302164,13.59559401,232.54,232.45,0.7]
[1757640302648,9.05955851,232.52,232.45,0.7]
[1757640302854,9.05955851,232.51,232.46,34.38]
[1757640303055,9.05955851,232.51,232.47,0.7]
[1757640303439,22.65515252,232.5,232.47,0.7]
[1757640303764,26.0,232.51,232.45,34.38]
[1757640303765,9.05955851,232.49,232.45,34.38]
[1757640303976,13.59559401,232.5,232.46,0.7]
[1757640304148,13.59559401,232.5,232.45,34.38]
[1757640304149,13.59559401,232.5,232.47,0.7]
[1757640304768,13.59559401,232.5,232.45,34.38]
[1757640304940,13.59559401,232.5,232.48,0.7]
[1757640306059,13.59559401,232.5,232.45,35.08]
[1757640306260,13.59559401,232.5,232.46,0.7]
[1757640306769,25.51169777,232.5,232.45,34.38]
[1757640307064,9.05955851,232.47,232.45,132.1]
[1757640307241,20.75324135,232.5,232.45,132.1]
[1757640307242,9.05955851,232.46,232.45,132.1]
[1757640307448,9.05955851,232.46,232.36,0.82]
[1757640307449,13.59559401,232.42,232.36,0.82]
[1757640307752,13.59559401,232.42,232.41,34.38]
[1757640307946,22.65515252,232.42,232.36,0.82]
[1757640308155,22.65515252,232.42,232.37,34.38]
[1757640308452,13.59559401,232.42,232.38,0.7]
[1757640308781,13.59559401,232.42,232.39,0.7]
[1757640308982,13.59559401,232.42,232.4,34.36]
[1757640309162,13.59559401,232.42,232.36,0.12]
[1757640309163,26.95771544,232.42,232.36,0.12]
[1757640309361,22.65515252,232.4,232.36,0.12]
[1757640309565,22.65515252,232.4,232.37,34.36]
[1757640311269,25.51515254,232.4,232.37,34.36]
[1757640311471,2.86092693,232.39,232.37,34.36]
[1757640311774,9.05955851,232.4,232.37,34.36]
[1757640311950,2.86088667,232.4,232.38,34.38]
[1757640312273,13.59559401,232.41,232.39,0.7]
[1757640312453,16.45648068,232.41,232.39,0.7]
[1757640312772,13.59559401,232.41,232.39,0.7]
[1757640312979,16.45648068,232.41,232.39,0.7]
[1757640313153,13.59559401,232.41,232.38,34.38]
[1757640313357,2.86088667,232.41,232.4,0.7]
[1757640313575,2.86088667,232.42,232.4,0.7]
[1757640314082,13.59559401,232.42,232.41,0.7]
[1757640314252,2.86088667,232.42,232.41,0.7]
[1757640314452,16.45648068,232.46,232.41,0.7]
[1757640314851,13.59559401,232.46,232.41,0.7]
[1757640315165,13.59559401,232.47,232.41,0.7]
[1757640315475,2.86088667,232.46,232.41,0.7]
[1757640315667,13.59559401,232.47,232.41,0.7]
[1757640315865,11.92044518,232.46,232.42,34.38]
[1757640316073,13.59559401,232.44,232.42,34.38]
[1757640316949,13.59559401,232.44,232.42,35.08]
[1757640317156,16.45648068,232.44,232.43,0.7]
[1757640317354,13.59559401,232.44,232.43,0.7]
[1757640317555,2.86088667,232.44,232.43,0.7]
[1757640318366,2.86088667,232.44,232.42,34.38]
[1757640318572,13.59559401,232.5,232.42,34.38]
[1757640318771,2.86913039,232.49,232.42,166.48]
[1757640318971,2.86913039,232.48,232.43,0.7]
[1757640319259,2.86913039,232.53,232.43,0.7]
[1757640319460,2.86913039,232.52,232.43,0.7]
[1757640319659,2.86913039,232.51,232.43,0.7]
[1757640319963,13.59559401,232.54,232.43,0.7]
[1757640320276,6.0608778,232.53,232.44,34.36]
[1757640320469,2.87103872,232.52,232.45,0.7]
[1757640320778,2.87103872,232.51,232.45,0.7]
[1757640320982,0.03,232.48,232.45,0.7]
[1757640321565,0.03,232.48,232.46,34.36]
[1757640322182,0.03,232.48,232.47,0.7]
[1757640322555,0.03,232.64,232.49,26.0]
[1757640322556,13.59559401,232.62,232.49,26.0]
[1757640322752,2.87534103,232.6,232.5,0.7]
[1757640322982,2.87534103,232.59,232.5,0.7]
[1757640323186,13.62559401,232.61,232.5,0.7]
[1757640323488,2.87539416,232.6,232.5,0.7]
[1757640323791,2.87539416,232.59,232.5,0.7]
[1757640323959,3.22547156,232.61,232.5,0.7]
[1757640324164,2.87527338,232.6,232.5,26.7]
[1757640324369,0.03,232.61,232.51,0.7]
[1757640324572,2.87500526,232.6,232.51,0.7]
[1757640324869,0.03,232.61,232.51,0.7]
[1757640325465,0.03,232.61,232.52,34.36]
[1757640325684,0.03,232.61,232.53,0.67]
[1757640325862,0.03,232.61,232.54,34.36]
[1757640326066,13.62559401,232.61,232.55,34.36]
[1757640326372,13.59559401,232.59,232.53,0.67]
[1757640326684,13.59559401,232.59,232.56,34.36]
[1757640327265,13.59559401,232.59,232.57,34.36]
[1757640328091,13.59559401,232.59,232.53,0.67]
[1757640328275,13.59559401,232.59,232.54,34.36]
[1757640328486,13.59559401,232.59,232.54,35.03]
[1757640329062,13.59559401,232.59,232.55,0.67]
[1757640330086,13.59559401,232.59,232.54,34.36]
[1757640330263,13.59559401,232.59,232.54,35.03]
[1757640330685,13.59559401,232.59,232.54,167.13]
[1757640330884,13.59559401,232.59,232.54,166.46]
[1757640331087,13.59559401,232.59,232.55,0.67]
[1757640331473,13.59559401,232.59,232.54,132.1]
[1757640331782,13.59559401,232.59,232.55,34.34]
[1757640332085,0.03,232.61,232.55,35.01]
[1757640332276,13.62559401,232.61,232.55,35.01]
[1757640332475,23.34515252,232.6,232.56,34.34]
[1757640332678,0.69,232.59,232.56,34.34]
[1757640332871,0.69,232.58,232.57,34.34]
[1757640333787,0.69,232.58,232.54,132.1]
[1757640333984,0.69,232.58,232.55,34.34]
[1757640335286,19.62419875,232.6,232.55,34.34]
[1757640335466,14.28559401,232.6,232.55,34.34]
[1757640335866,20.31419875,232.6,232.55,34.34]
[1757640336373,14.28559401,232.6,232.56,34.34]
[1757640336576,14.28559401,232.6,232.56,166.44]
[1757640337284,26.03,232.61,232.57,0.67]
[1757640337483,0.03,232.61,232.57,132.77]
[1757640337784,0.03,232.61,232.58,0.67]
[1757640338164,0.03,232.61,232.59,0.67]
[1757640338376,0.03,232.61,232.6,34.34]
[1757640338988,0.03,232.61,232.6,35.01]
[1757640339492,0.03,232.61,232.6,34.34]
[1757640339964,0.03,232.61,232.57,132.1]
[1757640340161,0.03,232.61,232.58,34.34]
[1757640340385,0.03,232.61,232.56,0.67]
[1757640340568,20.34419875,232.61,232.54,0.67]
[1757640340769,13.59559401,232.59,232.55,34.34]
[1757640340973,20.31419875,232.59,232.55,34.34]
[1757640341391,13.59559401,232.6,232.55,35.01]
[1757640341884,13.59559401,232.6,232.56,34.99]
[1757640342085,13.59559401,232.6,232.57,34.32]
[1757640342387,13.59559401,232.6,232.58,34.32]
[1757640342976,0.69,232.59,232.54,132.1]
[1757640343174,0.69,232.58,232.55,34.32]
[1757640343372,6.71860474,232.59,232.52,0.67]
[1757640343601,6.02860474,232.59,232.53,34.32]
[1757640343895,6.02860474,232.59,232.54,34.32]
[1757640344271,6.71860474,232.59,232.54,34.32]
[1757640344577,19.62419875,232.6,232.55,0.67]
[1757640344992,19.62419875,232.6,232.48,163.16]
[1757640345174,6.02860474,232.53,232.49,34.99]
[1757640345487,6.02860474,232.54,232.5,0.67]
[1757640346086,6.02860474,232.52,232.48,31.06]
[1757640346302,13.59559401,232.5,232.49,34.32]
[1757640346466,15.98059404,232.5,232.49,34.32]
[1757640346666,13.59559401,232.5,232.48,0.12]
[1757640346870,13.59559401,232.5,232.49,34.32]
[1757640347287,13.59559401,232.5,232.48,0.12]
[1757640347288,2.38500003,232.5,232.48,0.12]
[1757640347465,2.38500003,232.5,232.49,34.32]
[1757640348368,6.0339496,232.5,232.49,34.32]
[1757640350168,6.7239496,232.5,232.49,34.32]
[1757640351102,6.0339496,232.5,232.49,34.32]
[1757640351790,26.0,232.54,232.49,34.32]
[1757640351988,6.0339496,232.53,232.49,34.99]
[1757640352487,6.0339496,232.51,232.49,34.32]
[1757640352999,39.59559401,232.51,232.5,0.67]
[1757640353899,13.59559401,232.51,232.5,0.67]
[1757640354276,13.59559401,232.53,232.5,0.67]
[1757640354576,13.59559401,232.53,232.51,0.67]
[1757640354795,13.59559401,232.53,232.49,35.03]
[1757640355097,19.62954361,232.53,232.5,0.71]
[1757640356075,19.62954361,232.53,232.51,34.32]
[1757640356279,13.59559401,232.53,232.52,0.71]
[1757640356585,13.59559401,232.53,232.51,34.32]
[1757640356788,13.59559401,232.53,232.51,35.03]
[1757640357601,13.59559401,232.53,232.48,132.93]
[1757640357801,19.62954361,232.53,232.49,35.03]
[1757640358295,19.62954361,232.53,232.49,0.71]
[1757640358796,13.62559401,232.51,232.48,132.22]
[1757640358989,19.65954361,232.51,232.49,34.32]
[1757640359983,13.62559401,232.51,232.49,34.32]
[1757640360182,13.62559401,232.51,232.49,35.03]
[1757640360401,13.62559401,232.51,232.49,34.32]
[1757640360600,0.03,232.51,232.5,0.71]
[1757640361913,0.03,232.51,232.49,34.32]
[1757640362076,0.03,232.51,232.5,0.71]
[1757640363303,0.03,232.51,232.49,166.42]
[1757640363506,0.03,232.51,232.49,167.13]
[1757640365407,0.03,232.51,232.49,166.42]
[1757640366279,19.62954361,232.5,232.49,132.1]
[1757640366482,13.59559401,232.49,232.48,0.12]
[1757640367100,6.0339496,232.49,232.48,0.12]
[1757640367683,6.0339496,232.5,232.48,34.42]
[1757640367881,39.59559401,232.49,232.48,34.42]
[1757640368090,13.59559401,232.49,232.48,34.42]
[1757640368493,13.59559401,232.49,232.48,35.13]
[1757640368977,0.03,232.51,232.48,35.13]
[1757640369205,13.59559401,232.5,232.49,0.71]
[1757640369378,0.03,232.51,232.49,0.71]
[1757640369579,0.03,232.54,232.49,0.71]
[1757640371001,0.03,232.54,232.5,35.01]
[1757640371209,0.03,232.54,232.51,31.25]
[1757640371404,0.03,232.54,232.52,0.71]
[1757640373741,0.03,232.54,232.53,0.71]
[1757640373894,0.03,232.54,232.53,13.92]
[1757640374391,0.03,232.54,232.53,14.63]
[1757640375823,0.03,232.54,232.53,34.3]
[1757640377111,0.03,232.54,232.5,0.71]
[1757640377295,0.03,232.54,232.51,34.99]
[1757640377719,0.03,232.54,232.52,0.71]
[1757640378298,0.03,232.54,232.51,166.38]
[1757640378498,0.03,232.54,232.51,132.1]
[1757640378797,0.03,232.54,232.52,34.28]
[1757640380511,0.03,232.54,232.53,0.71]
[1757640380912,0.03,232.54,232.52,34.28]
[1757640381106,0.03,232.54,232.53,0.71]
[1757640381831,0.03,232.54,232.52,34.28]
[1757640383729,0.03,232.54,232.53,0.71]
[1757640384132,0.03,232.54,232.53,132.81]
[1757640384816,0.03,232.54,232.53,167.09]
[1757640386151,0.03,232.54,232.53,132.1]
[1757640386342,0.03,232.54,232.53,34.28]
[1757640387536,0.03,232.54,232.49,0.68]
[1757640387724,0.03,232.54,232.5,34.28]
[1757640387926,2.38444655,232.52,232.48,0.12]
[1757640388246,15.98004056,232.49,232.48,0.12]
[1757640388746,16.65004056,232.49,232.48,0.12]
[1757640389230,20.95130082,232.49,232.48,0.12]
[1757640389426,24.15973398,232.49,232.48,0.12]
[1757640389740,24.15973398,232.49,232.48,34.38]
[1757640390436,27.81043757,232.49,232.48,34.38]
[1757640391221,27.81043757,232.49,232.48,0.12]
[1757640391744,16.80402717,232.49,232.48,0.12]
[1757640392032,27.14043757,232.49,232.48,0.12]
[1757640392239,23.93200441,232.49,232.48,0.12]
[1757640392433,19.63074415,232.49,232.48,0.12]
[1757640393240,13.59559401,232.49,232.48,0.12]
[1757640393421,27.13903897,232.49,232.48,0.12]
[1757640394038,22.83777871,232.49,232.48,0.12]
[1757640396347,30.83819646,232.49,232.48,0.12]
[1757640397221,30.83744154,232.49,232.48,0.12]
[1757640406228,21.10313391,232.49,232.48,0.12]
[1757640406434,30.83744154,232.49,232.48,0.12]
[1757640409742,30.16744154,232.49,232.48,0.12]
[1757640411949,30.83744154,232.49,232.48,0.12]
[1757640412344,24.83186048,232.49,232.48,0.12]
[1757640414046,25.50186048,232.49,232.48,0.12]
[1757640415336,24.83186048,232.49,232.48,0.12]
[1757640416544,24.82322636,232.49,232.48,0.12]
[1757640418858,16.79323953,232.49,232.48,0.82]
[1757640419062,20.5219661,232.49,232.48,0.82]
[1757640420461,24.82322636,232.49,232.48,0.82]
[1757640422058,24.82322636,232.49,232.48,0.12]
[1757640422263,25.48322636,232.49,232.48,0.12]
[1757640422849,24.82322636,232.49,232.48,0.12]
[1757640423041,20.5219661,232.49,232.48,0.12]
[1757640423247,24.82322636,232.49,232.48,0.82]
[1757640423557,24.82322636,232.49,232.48,0.12]
[1757640424764,25.48322636,232.49,232.48,0.12]
[1757640424943,24.82322636,232.49,232.48,0.12]
[1757640425348,25.48322636,232.49,232.48,0.12]
[1757640428078,24.82322636,232.49,232.48,0.12]
[1757640431367,28.41194238,232.49,232.48,0.12]
[1757640431551,24.68321581,232.49,232.48,0.12]
[1757640431750,28.41194238,232.49,232.48,0.12]
[1757640432169,43.89722432,232.47,232.46,0.7]
[1757640432366,47.09486984,232.47,232.46,0.7]
[1757640433272,50.82359641,232.47,232.46,0.7]
[1757640433474,17.89740937,232.46,232.45,0.12]
[1757640433673,21.09505489,232.46,232.45,0.82]
[1757640433872,16.79323953,232.46,232.45,0.82]
[1757640434673,42.79323953,232.46,232.45,0.82]
[1757640435170,16.79323953,232.46,232.45,0.82]
[1757640435549,0.03,232.51,232.45,0.82]
[1757640435777,13.59559401,232.49,232.45,0.82]
[1757640436077,3.21527394,232.48,232.45,0.82]
[1757640441456,3.21527394,232.48,232.46,0.7]
[1757640441656,3.21527394,232.48,232.47,0.7]
[1757640442378,3.21439109,232.48,232.47,0.7]
[1757640443355,0.03,232.51,232.47,0.7]
[1757640444576,0.03,232.54,232.47,0.7]
[1757640444765,0.03,232.56,232.47,0.7]
[1757640444964,0.03,232.56,232.48,34.16]
[1757640445277,0.03,232.56,232.49,0.7]
[1757640445860,0.03,232.51,232.49,0.7]